bitfinex-derivatives/quotes_ETHF0:USTF0_20250501
["timestamp","ask_amount","ask_price","bid_price","bid_amount"]
[1746065450336,3.719,1816.4,1816.2,41.6143]
[1746065450533,4.82002,1816.4,1816.2,1.91539]
[1746065450733,1.10102,1816.4,1816.2,1.91539]
[1746065451237,1.10108,1816.3,1816.2,1.91539]
[1746065451434,1.10107,1816.4,1816.2,1.91539]
[1746065451635,1.10107,1816.4,1816.3,40.8]
[1746065452338,5.95291,1816.5,1816.3,41.90108]
[1746065452637,1.10102,1816.4,1816.3,1.10108]
[1746065453032,1.10102,1816.4,1816.2,1.91539]
[1746065453639,1.10102,1816.4,1816.3,40.8]
[1746065454043,1.6441,1816.6,1816.3,41.90105]
[1746065454340,1.10102,1816.5,1816.3,41.90105]
[1746065454540,1.10102,1816.5,1816.3,45.10885]
[1746065454929,1.10102,1816.5,1816.4,0.8221]
[1746065455536,1.10102,1816.4,1816.3,44.0078]
[1746065455739,2.69312,1816.4,1816.3,44.0078]
[1746065456934,2.69312,1816.4,1816.3,40.8]
[1746065459545,11.10321,1816.7,1816.3,41.90108]
[1746065459746,1.101,1816.5,1816.3,4.30888]
[1746065459944,1.10102,1816.4,1816.3,4.30888]
[1746065460549,1.10102,1816.4,1816.3,4.30558]
[1746065460853,1.10102,1816.4,1816.3,45.10558]
[1746065461435,1.7384,1816.6,1816.4,1.10102]
[1746065461635,3.2078,1817.4,1816.5,3.2045]
[1746065461840,0.0971106,1817.3,1816.7,3.2078]
[1746065462044,1.10061,1817.1,1816.8,4.81972]
[1746065462241,1.6464,1817.3,1816.8,1.10076]
[1746065462442,1.10066,1817.0,1816.9,0.8111]
[1746065462641,1.10066,1817.0,1816.9,2.3791]
[1746065462949,1.10062,1817.1,1816.9,2.3791]
[1746065463152,2.2606,1817.3,1816.9,40.8]
[1746065463444,1.10066,1817.0,1816.9,40.8]
[1746065463743,1.10072,1816.9,1816.7,2.81861]
[1746065463949,1.10072,1816.9,1816.8,1.7178]
[1746065464340,1.10072,1816.9,1816.8,1.7145]
[1746065464540,1.10072,1816.9,1816.8,42.5145]
[1746065465043,1.10072,1816.9,1816.8,40.8]
[1746065465249,2.56042,1816.9,1816.8,40.8]
[1746065465445,1.10084,1816.7,1816.6,0.8183]
[1746065465853,1.10084,1816.7,1816.6,41.6183]
[1746065466361,1.10096,1816.5,1816.4,3.694]
[1746065466666,1.10426,1816.5,1816.4,6.9018]
[1746065466963,1.10426,1816.5,1816.4,3.694]
[1746065467164,1.10426,1816.5,1816.4,6.9018]
[1746065467464,1.10426,1816.5,1816.4,3.2078]
[1746065467858,1.10102,1816.4,1816.3,1.7059]
[1746065468053,0.0033,1816.5,1816.3,1.7059]
[1746065468863,1.10426,1816.5,1816.4,0.8673]
[1746065469059,1.10426,1816.5,1816.4,2.5732]
[1746065469757,1.10426,1816.5,1816.4,5.781]
[1746065470258,0.0033,1816.5,1816.4,5.781]
[1746065470460,0.0033,1816.5,1816.4,6.88202]
[1746065472664,0.0033,1816.5,1816.4,5.781]
[1746065472863,1.10426,1816.5,1816.4,5.781]
[1746065473666,0.0033,1816.5,1816.4,6.88202]
[1746065474165,1.10426,1816.5,1816.4,6.88202]
[1746065474360,0.0033,1816.5,1816.4,6.88202]
[1746065474767,1.10426,1816.5,1816.4,6.88202]
[1746065476660,1.10426,1816.5,1816.4,9.475]
[1746065476863,1.10426,1816.5,1816.4,5.781]
[1746065477555,0.0033,1816.5,1816.4,6.88202]
[1746065477760,0.0033,1816.5,1816.4,5.781]
[1746065477961,1.10426,1816.5,1816.4,5.781]
[1746065478161,0.0033,1816.5,1816.4,5.781]
[1746065478456,1.10426,1816.5,1816.4,5.781]
[1746065478657,1.10426,1816.5,1816.4,6.88202]
[1746065478854,1.10426,1816.5,1816.4,5.781]
[1746065479464,1.10426,1816.5,1816.4,4.9137]
[1746065479664,1.10426,1816.5,1816.4,1.7059]
[1746065480062,0.0033,1816.5,1816.4,1.7059]
[1746065480567,0.0033,1816.5,1816.4,2.80692]
[1746065481163,1.10426,1816.5,1816.4,1.7059]
[1746065481668,0.0033,1816.5,1816.4,2.80692]
[1746065481868,1.10426,1816.5,1816.4,1.7059]
[1746065483175,1.10102,1816.4,1816.3,3.2078]
[1746065483367,1.10126,1816.0,1815.9,3.2078]
[1746065483562,1.10132,1815.9,1815.8,1.6823]
[1746065483873,2.83742,1815.9,1815.8,42.4823]
[1746065484376,2.83742,1815.9,1815.8,40.8]
[1746065484766,3.64922,1815.9,1815.8,40.8]
[1746065486067,1.10144,1815.7,1815.6,3.3347]
[1746065486673,1.10144,1815.7,1815.6,44.1347]
[1746065486968,8.2078,1815.7,1815.1,3.2078]
[1746065487276,1.10164,1815.4,1815.2,3.2078]
[1746065487473,1.10164,1815.4,1815.3,42.4537]
[1746065488472,1.10161,1815.5,1815.3,42.4537]
[1746065488672,1.10161,1815.5,1815.4,1.6022]
[1746065488868,1.10148,1815.7,1815.4,2.70379]
[1746065489067,1.10154,1815.6,1815.4,5.6354]
[1746065489268,1.10154,1815.6,1815.5,1.6022]
[1746065489471,2.4803,1815.8,1815.5,1.6022]
[1746065489472,1.10144,1815.7,1815.5,1.6022]
[1746065489672,1.1015,1815.6,1815.5,1.6022]
[1746065490174,1.6254,1815.7,1815.5,1.6022]
[1746065490473,1.1015,1815.6,1815.5,1.6022]
[1746065492380,2.72687,1815.7,1815.5,1.6022]
[1746065492675,2.72687,1815.7,1815.5,2.70374]
[1746065492878,2.72687,1815.7,1815.6,1.5653]
[1746065494974,1.10156,1815.5,1815.4,4.0332]
[1746065495372,2.72505,1815.6,1815.4,4.0332]
[1746065496072,2.72505,1815.6,1815.4,5.13482]
[1746065496272,2.72505,1815.6,1815.5,1.6166]
[1746065496779,0.8549,1815.8,1815.5,2.71812]
[1746065496972,1.10144,1815.7,1815.6,0.8273]
[1746065498081,1.1015,1815.6,1815.5,1.6166]
[1746065500877,1.10163,1815.4,1815.3,40.8]
[1746065501083,1.10163,1815.4,1815.3,42.5335]
[1746065502488,1.6605,1815.5,1815.3,43.63517]
[1746065502489,1.10162,1815.5,1815.3,43.63517]
[1746065502680,1.10161,1815.5,1815.3,41.90167]
[1746065502980,3.663,1815.6,1815.3,41.90167]
[1746065503287,3.2078,1816.6,1815.8,2.75344]
[1746065503483,1.1043,1816.5,1816.0,3.2078]
[1746065503682,1.1043,1816.5,1816.2,4.30889]
[1746065503884,1.1043,1816.5,1816.3,1.6329]
[1746065504482,1.10102,1816.4,1816.3,1.6329]
[1746065504883,1.10102,1816.4,1816.3,42.4329]
[1746065505085,2.74879,1816.5,1816.3,42.4329]
[1746065505273,1.10429,1816.5,1816.3,43.53397]
[1746065505482,0.0033,1816.5,1816.3,43.53397]
[1746065505787,0.0033,1816.5,1816.4,1.10102]
[1746065505989,1.10427,1816.5,1816.3,43.53394]
[1746065506591,0.0033,1816.5,1816.3,43.53394]
[1746065506888,0.0033,1816.5,1816.3,42.4329]
[1746065507182,0.0033,1816.5,1816.4,1.10102]
[1746065507377,1.10429,1816.5,1816.3,42.4329]
[1746065507583,1.10102,1816.4,1816.3,42.4329]
[1746065507781,1.1043,1816.5,1816.3,42.4329]
[1746065507987,0.0033,1816.5,1816.3,43.53397]
[1746065508593,0.0033,1816.5,1816.4,1.10102]
[1746065508888,0.0033,1816.5,1816.3,42.4329]
[1746065509389,1.10426,1816.5,1816.3,43.53396]
[1746065509590,0.0033,1816.5,1816.4,1.10102]
[1746065510589,0.0033,1816.5,1816.4,4.30882]
[1746065510790,0.0033,1816.5,1816.4,3.2078]
[1746065511191,0.0033,1816.5,1816.3,43.53394]
[1746065511893,0.0033,1816.5,1816.4,1.10102]
[1746065512491,0.0033,1816.5,1816.3,43.53394]
[1746065512796,1.10429,1816.5,1816.3,43.53394]
[1746065512986,1.10429,1816.5,1816.4,1.592]
[1746065514488,0.0033,1816.5,1816.4,1.592]
[1746065514687,0.0033,1816.5,1816.4,2.69302]
[1746065514996,1.10426,1816.5,1816.4,1.592]
[1746065515496,0.0033,1816.5,1816.4,1.592]
[1746065515696,1.10426,1816.5,1816.4,1.592]
[1746065515890,0.0033,1816.5,1816.4,2.69302]
[1746065516395,0.0033,1816.5,1816.4,5.90082]
[1746065522096,1.10426,1816.5,1816.4,4.7998]
[1746065522608,0.0033,1816.5,1816.4,5.90082]
[1746065526097,1.10426,1816.5,1816.4,5.90082]
[1746065526404,1.10426,1816.5,1816.4,4.7998]
[1746065526595,1.10426,1816.5,1816.4,5.90082]
[1746065526903,1.10426,1816.5,1816.4,4.7998]
[1746065527200,1.10426,1816.5,1816.4,3.2078]
[1746065527397,1.10426,1816.5,1816.0,3.2078]
[1746065527398,2.75255,1816.4,1816.0,3.2078]
[1746065527699,2.75286,1816.2,1815.6,3.2078]
[1746065528001,1.10134,1815.9,1815.7,43.55003]
[1746065528693,2.81191,1816.0,1815.8,1.6486]
[1746065529095,1.10132,1815.9,1815.8,1.6486]
[1746065529294,2.81192,1815.9,1815.8,1.6486]
[1746065530303,1.7106,1815.9,1815.8,1.6486]
[1746065530506,2.81192,1815.9,1815.8,1.6486]
[1746065531706,1.10132,1815.9,1815.8,1.6486]
[1746065534007,1.1013,1816.0,1815.8,1.6486]
[1746065534207,1.10132,1815.9,1815.8,4.8564]
[1746065538507,1.10132,1815.9,1815.8,1.6486]
[1746065538710,1.10138,1815.8,1815.7,40.8]
[1746065538908,2.83418,1815.8,1815.7,40.8]
[1746065540011,2.83418,1815.8,1815.7,42.5136]
[1746065540703,1.10138,1815.8,1815.7,42.5136]
[1746065540902,1.10137,1815.9,1815.7,42.5136]
[1746065541103,1.10137,1815.9,1815.8,1.7136]
[1746065544313,1.10138,1815.8,1815.7,40.8]
[1746065544512,2.82408,1815.8,1815.7,42.5264]
[1746065544714,1.1015,1815.6,1815.5,4.0017]
[1746065545015,1.1015,1815.6,1815.5,1.7264]
[1746065545213,1.1015,1815.6,1815.5,42.5264]
[1746065545407,2.8242,1815.6,1815.5,42.5264]
[1746065547112,4.47655,1815.6,1815.2,1.6284]
[1746065547407,4.47655,1815.6,1815.3,1.6247]
[1746065547408,1.10163,1815.4,1815.3,1.6247]
[1746065549209,1.10181,1815.1,1815.0,3.2078]
[1746065550616,1.10181,1815.1,1815.0,4.8424]
[1746065551415,1.10181,1815.1,1815.0,1.6346]
[1746065552010,6.8698,1815.5,1815.2,1.10171]
[1746065552212,1.10165,1815.4,1815.3,3.4141]
[1746065552413,1.10165,1815.4,1815.3,1.6833]
[1746065552815,8.581,1815.5,1814.9,41.9019]
[1746065553118,1.10182,1815.1,1815.0,1.6833]
[1746065553323,1.10182,1815.1,1815.0,4.8911]
[1746065562819,1.10182,1815.1,1815.0,7.56977]
[1746065563423,1.10182,1815.1,1815.0,6.4679]
[1746065567015,1.10182,1815.1,1815.0,2.4127]
[1746065567215,1.10187,1815.0,1814.9,40.8]
[1746065567423,1.10193,1814.9,1814.8,1.5957]
[1746065567822,1.10193,1814.9,1814.8,42.3957]
[1746065568316,2.78103,1814.9,1814.8,42.3957]
[1746065569525,6.43703,1814.9,1814.8,42.3957]
[1746065569725,1.10205,1814.7,1814.6,1.6639]
[1746065570226,1.10205,1814.7,1814.6,42.4639]
[1746065571727,1.10205,1814.7,1814.6,44.0749]
[1746065572025,1.10203,1814.8,1814.6,44.0749]
[1746065572327,1.10203,1814.8,1814.7,1.611]
[1746065576723,2.81463,1814.8,1814.7,1.611]
[1746065577519,1.10203,1814.8,1814.7,1.611]
[1746065586131,1.10205,1814.7,1814.6,40.8]
[1746065587541,1.10205,1814.7,1814.6,42.4772]
[1746065589538,1.10205,1814.7,1814.6,1.6772]
[1746065589744,1.10217,1814.5,1814.4,1.6788]
[1746065590241,4.89017,1814.5,1814.4,42.4788]
[1746065590642,4.89017,1814.5,1814.4,40.8]
[1746065590834,5.73917,1814.5,1814.4,40.8]
[1746065591834,7.35977,1814.5,1814.4,40.8]
[1746065592039,1.10229,1814.3,1814.2,1.712]
[1746065592237,1.10266,1813.7,1813.6,10.48764532]
[1746065592433,1.10264,1813.8,1813.6,10.48764532]
[1746065592636,1.10264,1813.8,1813.7,40.8]
[1746065592846,1.10256,1813.9,1813.7,41.90266]
[1746065593044,1.1026,1813.8,1813.7,40.8]
[1746065593344,4.89057,1813.9,1813.7,40.8]
[1746065593538,4.89057,1813.9,1813.8,3.1558]
[1746065596541,3.788,1813.9,1813.8,3.1558]
[1746065596748,3.788,1813.9,1813.8,6.3636]
[1746065596942,3.788,1813.9,1813.8,7.4662]
[1746065597649,4.89054,1813.9,1813.8,7.4662]
[1746065598647,4.89054,1813.9,1813.8,6.3636]
[1746065599141,4.89054,1813.9,1813.8,7.4662]
[1746065599344,4.89054,1813.9,1813.8,48.2662]
[1746065601042,3.788,1813.9,1813.8,48.2662]
[1746065601551,4.89054,1813.9,1813.8,48.2662]
[1746065601852,4.89054,1813.9,1813.8,47.1636]
[1746065602555,4.89054,1813.9,1813.8,48.2662]
[1746065602755,4.89054,1813.9,1813.8,47.1636]
[1746065603648,3.788,1813.9,1813.8,48.2662]
[1746065603959,4.89054,1813.9,1813.8,48.2662]
[1746065604253,4.89054,1813.9,1813.8,47.1636]
[1746065604445,3.788,1813.9,1813.8,48.2662]
[1746065605257,4.89054,1813.9,1813.8,48.2662]
[1746065605446,3.788,1813.9,1813.8,48.2662]
[1746065607456,4.89054,1813.9,1813.8,48.2662]
[1746065608143,3.788,1813.9,1813.8,48.2662]
[1746065608956,4.89054,1813.9,1813.8,48.2662]
[1746065613361,3.788,1813.9,1813.8,48.2662]
[1746065613563,4.89054,1813.9,1813.8,47.1636]
[1746065613959,4.89054,1813.9,1813.8,43.9558]
[1746065614257,6.48494,1813.9,1813.8,3.1558]
[1746065615366,6.48494,1813.9,1813.8,1.5757]
[1746065616265,3.788,1813.9,1813.8,1.1026]
[1746065616761,4.89054,1813.9,1813.8,42.4246]
[1746065621064,6.60934,1813.9,1813.8,40.8]
[1746065621461,1.1026,1813.8,1813.7,2.4497]
[1746065621665,2.8214,1813.8,1813.7,2.4497]
[1746065621965,2.8214,1813.8,1813.7,43.2497]
[1746065622160,6.6094,1813.8,1813.7,43.2497]
[1746065624266,6.6094,1813.8,1813.7,42.4517]
[1746065624566,6.6094,1813.8,1813.7,1.6517]
[1746065626366,1.10266,1813.7,1813.6,40.8]
[1746065626570,1.10272,1813.6,1813.5,1.6957]
[1746065627369,6.61182,1813.6,1813.5,1.6957]
[1746065628265,6.61182,1813.6,1813.4,41.6082]
[1746065628266,1.10278,1813.5,1813.4,41.6082]
[1746065628470,1.10278,1813.5,1813.4,44.1056]
[1746065629065,4.89078,1813.5,1813.4,44.1056]
[1746065632371,4.89078,1813.5,1813.4,1.6839]
[1746065632571,1.1029,1813.3,1813.2,1.6114]
[1746065632772,1.1029,1813.3,1813.2,44.1383]
[1746065633175,4.8909,1813.3,1813.2,44.1383]
[1746065635277,3.788,1813.3,1813.2,45.24126]
[1746065636984,4.8909,1813.3,1813.2,45.24126]
[1746065637183,3.788,1813.3,1813.2,45.24126]
[1746065637679,4.8909,1813.3,1813.2,44.1383]
[1746065639490,1.10308,1813.0,1812.9,3.2078]
[1746065639689,1.10308,1813.0,1812.9,0.8012]
[1746065639988,1.10308,1813.0,1812.9,41.6012]
[1746065640176,4.89108,1813.0,1812.9,41.6012]
[1746065640482,1.10321,1812.8,1812.7,7.27984532]
[1746065640681,4.75921,1812.8,1812.7,7.27984532]
[1746065640887,9.75921,1812.8,1812.7,7.27984532]
[1746065641189,1.10333,1812.6,1812.5,1.5857]
[1746065641580,1.10333,1812.6,1812.5,42.3857]
[1746065641780,1.10333,1812.6,1812.5,1.5857]
[1746065642181,4.89133,1812.6,1812.5,1.5857]
[1746065642593,1.10339,1812.5,1812.4,48.07984532]
[1746065642788,5.55009,1812.5,1812.4,7.27984532]
[1746065642987,7.19339,1812.5,1812.4,7.27984532]
[1746065643188,10.98139,1812.5,1812.4,7.27984532]
[1746065643387,10.98139,1812.5,1812.4,8.93044532]
[1746065644395,10.19069,1812.5,1812.4,8.93044532]
[1746065645598,10.19069,1812.5,1812.4,1.6506]
[1746065649304,1.10345,1812.4,1812.3,1.5857]
[1746065649799,1.10345,1812.4,1812.3,42.3857]
[1746065649999,2.74735,1812.4,1812.3,42.3857]
[1746065650198,6.53535,1812.4,1812.3,42.3857]
[1746065650398,6.53535,1812.4,1812.3,1.5857]
[1746065651397,6.53535,1812.4,1812.3,3.2203]
[1746065652001,6.53535,1812.4,1812.1,3.2078]
[1746065652002,1.10357,1812.2,1812.1,3.2078]
[1746065652308,1.10363,1812.1,1812.0,3.3024]
[1746065652500,1.10363,1812.1,1812.0,44.1024]
[1746065653208,4.89163,1812.1,1812.0,44.1024]
[1746065665421,5.3524793,1812.1,1812.0,44.1024]
[1746065665622,7.0639793,1812.1,1812.0,44.1024]
[1746065665822,6.60313,1812.1,1812.0,3.3024]
[1746065666325,6.60313,1812.1,1812.0,44.1024]
[1746065671127,4.89163,1812.1,1812.0,44.1024]
[1746065676134,3.788,1812.1,1812.0,45.20609]
[1746065676330,4.89163,1812.1,1812.0,44.1024]
[1746065677229,1.10363,1812.1,1812.0,44.1024]
[1746065677429,1.10394,1811.6,1811.5,3.2078]
[1746065677633,1.10406,1811.4,1811.3,3.2078]
[1746065677934,1.10406,1811.4,1811.3,44.0078]
[1746065678135,4.89206,1811.4,1811.3,44.0078]
[1746065678929,4.89206,1811.4,1811.3,40.8]
[1746065679329,1.10412,1811.3,1811.2,6.16732532]
[1746065679532,2.77582,1811.3,1811.2,6.16732532]
[1746065679733,5.98362,1811.3,1811.2,46.96732532]
[1746065680033,9.63862,1811.3,1811.2,46.96732532]
[1746065680229,1.10418,1811.2,1811.1,7.45245305]
[1746065680436,3.64008,1811.2,1811.1,0.9692221]
[1746065680631,8.64008,1811.2,1811.1,2.1e-06]
[1746065681234,1.10424,1811.1,1811.0,13.4707136]
[1746065681527,1.10424,1811.1,1810.6,1.6479]
[1746065681528,1.10436,1811.0,1810.6,4.8557]
[1746065681734,1.10438,1810.9,1810.8,3.2078]
[1746065682236,1.10436,1810.9,1810.8,3.2078]
[1746065682728,7.443,1811.3,1810.8,8.2078]
[1746065682934,1.1043,1811.0,1810.9,1.6264]
[1746065683328,1.1043,1811.0,1810.9,6.6264]
[1746065683933,1.1043,1811.0,1810.9,1.6264]
[1746065686732,1.10436,1810.9,1810.8,3.2078]
[1746065686932,2.83836,1810.9,1810.8,4.83]
[1746065687137,6.62636,1810.9,1810.8,1.6222]
[1746065687933,6.62636,1810.9,1810.7,40.8]
[1746065687934,1.10442,1810.8,1810.7,40.8]
[1746065688133,2.83842,1810.8,1810.7,40.8]
[1746065689332,6.62642,1810.8,1810.7,40.8]
[1746065691330,1.10448,1810.7,1810.6,3.2701]
[1746065691532,1.10477,1810.3,1810.1,5.83]
[1746065691733,1.10477,1810.3,1810.2,1.6972]
[1746065691928,1.10458,1810.6,1810.4,1.10465]
[1746065692140,4.89256,1810.6,1810.4,3.2078]
[1746065692433,4.89259,1810.6,1810.4,3.2078]
[1746065692733,4.89257,1810.6,1810.4,4.31245]
[1746065692938,4.89257,1810.6,1810.5,1.5959]
[1746065693537,3.788,1810.6,1810.5,2.70051]
[1746065693740,4.89255,1810.6,1810.5,1.5959]
[1746065694131,4.89255,1810.6,1810.5,2.70051]
[1746065694334,4.89255,1810.6,1810.5,1.5959]
[1746065695040,4.89255,1810.6,1810.5,2.70051]
[1746065695333,3.788,1810.6,1810.5,2.70051]
[1746065695539,4.89255,1810.6,1810.5,1.5959]
[1746065695940,2.76061,1811.1,1810.5,10.2489]
[1746065696132,1.10446,1810.8,1810.7,3.2078]
[1746065696332,1.10446,1810.8,1810.7,45.6133]
[1746065697434,1.10442,1810.8,1810.7,46.71778]
[1746065697638,1.1044,1810.9,1810.8,1.10442]
[1746065697837,1.10435,1811.0,1810.9,1.10436]
[1746065698035,1.10435,1811.0,1810.9,4.31216]
[1746065698342,1.10435,1811.0,1810.9,3.2078]
[1746065699843,1.10435,1811.0,1810.9,4.9389]
[1746065700540,1.6676,1811.1,1810.9,4.9389]
[1746065700739,1.6676,1811.1,1811.0,2.553]
[1746065700940,1.10426,1811.1,1811.0,4.4586]
[1746065701142,1.10411,1811.4,1811.2,1.10416]
[1746065701341,1.10411,1811.4,1811.3,1.6266]
[1746065702546,1.6156,1811.5,1811.3,2.73072]
[1746065702741,1.10406,1811.4,1811.3,1.6266]
[1746065702939,1.10406,1811.4,1811.3,2.73072]
[1746065703139,4.89206,1811.4,1811.3,2.73072]
[1746065703547,3.788,1811.4,1811.3,2.73072]
[1746065703844,3.788,1811.4,1811.3,5.93852]
[1746065704148,1.10388,1811.7,1811.6,1.10394]
[1746065704748,1.6156,1811.8,1811.7,1.10388]
[1746065704939,1.6156,1811.8,1811.7,4.31168]
[1746065705140,5.4036,1811.8,1811.7,4.31168]
[1746065706047,6.50741,1811.8,1811.7,4.31168]
[1746065706247,5.4036,1811.8,1811.7,4.31168]
[1746065706946,6.50741,1811.8,1811.7,4.31168]
[1746065707245,3.2078,1812.4,1811.7,4.31168]
[1746065707246,1.6108,1812.8,1812.5,1.10333]
[1746065707451,1.6108,1812.8,1812.7,1.10327]
[1746065707745,1.6108,1812.8,1812.6,42.4684]
[1746065707941,1.10327,1812.7,1812.6,42.4684]
[1746065708142,5.3988,1812.8,1812.7,1.10327]
[1746065708343,5.3988,1812.8,1812.7,5.97947]
[1746065709048,3.788,1812.8,1812.7,5.97947]
[1746065709244,1.6108,1813.0,1812.9,1.10314]
[1746065709441,1.6108,1813.0,1812.7,4.8762]
[1746065709642,4.755,1813.2,1812.9,3.2078]
[1746065709850,2.7138,1813.2,1813.0,2.77145]
[1746065710243,1.6108,1813.2,1813.1,1.10302]
[1746065710442,1.6108,1813.2,1813.1,4.31082]
[1746065710951,0.8168,1813.4,1813.2,1.10291]
[1746065710952,1.10284,1813.4,1813.2,1.10291]
[1746065711151,1.6947,1813.3,1813.2,2.82361]
[1746065712655,1.6947,1813.3,1813.2,1.10296]
[1746065712953,0.8086,1813.5,1813.3,1.10288]
[1746065712954,1.91141,1813.5,1813.3,1.10288]
[1746065713144,1.91141,1813.5,1813.3,4.31068]
[1746065713344,2.79742,1813.6,1813.3,4.31064]
[1746065713545,2.79745,1813.6,1813.4,1.5931]
[1746065713744,1.6947,1813.6,1813.5,1.10278]
[1746065714051,5.4827,1813.6,1813.5,1.10278]
[1746065714446,5.4827,1813.6,1813.5,4.31058]
[1746065715249,4.4845,1813.9,1813.5,3.2078]
[1746065715449,1.10266,1813.7,1813.5,4.31056]
[1746065715651,2.79572,1813.6,1813.5,3.2078]
[1746065715838,2.79572,1813.6,1813.5,40.8]
[1746065716243,6.58372,1813.6,1813.5,40.8]
[1746065717857,5.481,1813.6,1813.5,41.90278]
[1746065718152,1.693,1813.6,1813.5,41.90278]
[1746065718353,1.693,1813.6,1813.5,40.8]
[1746065718742,1.693,1813.6,1813.5,42.4795]
[1746065718949,2.79572,1813.6,1813.5,42.4795]
[1746065719146,2.79572,1813.6,1813.5,40.8]
[1746065721154,6.58372,1813.6,1813.5,40.8]
[1746065721758,1.10308,1813.0,1812.9,3.2078]
[1746065721958,1.10327,1812.7,1812.6,10.7017]
[1746065722148,1.10327,1812.7,1812.6,51.5017]
[1746065723248,4.89127,1812.7,1812.6,51.5017]
[1746065726059,4.89127,1812.7,1812.6,45.6717]
[1746065727460,4.89127,1812.7,1812.6,42.4639]
[1746065729762,4.89127,1812.7,1812.6,40.8]
[1746065730062,2.75838,1812.6,1812.2,1.6494]
[1746065730360,2.75853,1812.5,1812.2,40.8]
[1746065730667,1.10351,1812.3,1812.2,40.8]
[1746065731053,3.788,1812.7,1812.2,45.8]
[1746065731258,3.788,1812.4,1812.3,6.77821]
[1746065731460,3.788,1812.4,1812.3,7.58541]
[1746065732157,2.81821,1812.7,1812.3,6.4819]
[1746065732360,1.10333,1812.6,1812.5,1.10334]
[1746065733564,1.10333,1812.6,1812.5,4.31114]
[1746065733751,1.10333,1812.6,1812.5,3.2078]
[1746065734465,2.7525,1812.7,1812.5,4.31116]
[1746065734764,2.7525,1812.7,1812.5,4.31115]
[1746065735058,6.5405,1812.7,1812.5,4.31115]
[1746065735265,3.788,1812.7,1812.6,1.10333]
[1746065735956,3.788,1812.7,1812.6,4.80033]
[1746065736155,1.10314,1812.9,1812.7,1.10324]
[1746065736368,1.10321,1812.8,1812.7,3.2078]
[1746065736664,1.6002,1813.0,1812.7,4.31107]
[1746065736864,1.10319,1812.9,1812.7,4.31107]
[1746065737066,4.89119,1812.9,1812.7,3.2078]
[1746065737263,3.788,1812.9,1812.8,1.10321]
[1746065737463,3.788,1812.9,1812.8,1.89161]
[1746065738266,2.70331,1813.0,1812.9,1.10314]
[1746065738567,1.6002,1813.0,1812.9,1.10314]
[1746065738865,2.70328,1813.0,1812.9,1.10314]
[1746065739265,6.49128,1813.0,1812.9,1.10314]
[1746065740668,5.3882,1813.0,1812.9,1.10314]
[1746065742563,5.3882,1813.0,1812.9,4.31094]
[1746065742765,5.3882,1813.0,1812.9,6.03614]
[1746065743372,6.49128,1813.0,1812.9,4.933]
[1746065743574,6.49128,1813.0,1812.9,2.82834]
[1746065743773,1.10321,1812.8,1812.7,4.31105]
[1746065744075,2.7419,1812.9,1812.8,1.10321]
[1746065745169,6.5299,1812.9,1812.8,1.10321]
[1746065746872,5.4267,1812.9,1812.7,4.7758]
[1746065747071,2.72071,1812.8,1812.7,5.87903]
[1746065747369,1.6175,1812.8,1812.7,5.87903]
[1746065747568,1.6175,1812.8,1812.5,4.0109]
[1746065747782,1.10339,1812.5,1812.4,5.83]
[1746065748282,6.50889,1812.5,1812.4,6.93345]
[1746065748682,3.788,1812.5,1812.4,6.93345]
[1746065748887,3.788,1812.5,1812.4,9.42035]
[1746065749074,4.3691,1812.7,1812.6,1.10333]
[1746065749278,2.7516,1812.7,1812.6,1.10333]
[1746065749480,1.10333,1812.6,1812.5,2.77894]
[1746065750082,4.89133,1812.6,1812.5,2.77894]
[1746065750985,3.788,1812.6,1812.5,2.77894]
[1746065751278,3.788,1812.6,1812.5,5.98674]
[1746065751483,3.788,1812.6,1812.5,6.77784]
[1746065752283,1.10327,1812.7,1812.6,1.10333]
[1746065752484,1.10327,1812.7,1812.6,2.75403]
[1746065752784,1.10325,1812.8,1812.7,1.10325]
[1746065752987,1.10327,1812.7,1812.6,2.75398]
[1746065754087,4.89127,1812.7,1812.6,2.75398]
[1746065755583,4.89127,1812.7,1812.6,1.6507]
[1746065755784,4.89127,1812.7,1812.6,2.75403]
[1746065755985,4.89127,1812.7,1812.6,1.10333]
[1746065756178,3.788,1812.7,1812.4,8.272]
[1746065756383,1.10339,1812.5,1812.4,6.6413]
[1746065756788,1.10339,1812.5,1812.4,7.74475]
[1746065758088,4.89139,1812.5,1812.4,7.74475]
[1746065758388,3.788,1812.5,1812.4,1.91475]
[1746065759388,3.788,1812.5,1812.4,3.59845]
[1746065759587,4.89139,1812.5,1812.4,3.59845]
[1746065760588,4.89139,1812.5,1812.4,1.91475]
[1746065760889,4.89139,1812.5,1812.4,1.10345]
[1746065762686,6.55109,1812.5,1812.4,1.10345]
[1746065763690,5.4477,1812.5,1812.4,1.10345]
[1746065763990,6.55109,1812.5,1812.4,2.80685]
[1746065764290,2.76309,1812.5,1812.4,2.80685]
[1746065765691,1.10345,1812.4,1812.3,4.31126]
[1746065765894,2.79405,1812.4,1812.3,4.31126]
[1746065767087,6.58205,1812.4,1812.3,4.31126]
[1746065768389,2.79405,1812.4,1812.3,4.31126]
[1746065769090,6.58205,1812.4,1812.3,4.31126]
[1746065769889,3.788,1812.4,1812.3,4.31126]